[Event "Titled Tuesday Blitz June 28 Early 2022"]
[White "Schmakel, Sam"]
[Black "Adla, Diego"]
[WhiteFideId "2039311"]
[BlackFideId "100072"]
[WhiteElo "2356"]
[BlackElo "2377"]
[Result "0-1"]
[Round "03"]
[TimeControl "180+1"]
[Date "2022.06.28"]
[WhiteClock "0:00:02"]
[BlackClock "0:00:25"]

1. c4 {[%clk 0:02:59]}  e6 {[%clk 0:02:59]} 2. g3 {[%clk 0:02:57]}  d5 {[%clk 0:02:59]} 3. Bg2 {[%clk 0:02:57]}  Nf6 {[%clk 0:02:58]} 4. Nf3 {[%clk 0:02:57]}  Nbd7 {[%clk 0:02:56]} 5. b3 {[%clk 0:02:56]}  c6 {[%clk 0:02:43]} 6. Bb2 {[%clk 0:02:54]}  Be7 {[%clk 0:02:39]} 7. O-O {[%clk 0:02:53]}  O-O {[%clk 0:02:39]} 8. d4 {[%clk 0:02:47]}  b6 {[%clk 0:02:36]} 9. Nc3 {[%clk 0:02:41]}  Bb7 {[%clk 0:02:32]} 10. Rc1 {[%clk 0:02:41]}  Rc8 {[%clk 0:02:25]} 11. e3 {[%clk 0:02:40]}  h6 {[%clk 0:02:16]} 12. Qe2 {[%clk 0:02:38]}  Re8 {[%clk 0:02:13]} 13. Rfd1 {[%clk 0:02:37]}  Bf8 {[%clk 0:02:09]} 14. e4 {[%clk 0:02:34]}  dxe4 {[%clk 0:02:05]} 15. Nxe4 {[%clk 0:02:35]}  Nxe4 {[%clk 0:02:00]} 16. Qxe4 {[%clk 0:02:36]}  Qc7 {[%clk 0:02:01]} 17. Qg4 {[%clk 0:02:03]}  Nf6 {[%clk 0:01:57]} 18. Qh4 {[%clk 0:01:59]}  Rcd8 {[%clk 0:01:52]} 19. d5 {[%clk 0:01:41]}  Qe7 {[%clk 0:01:40]} 20. dxe6 {[%clk 0:01:19]}  Qxe6 {[%clk 0:01:40]} 21. Bxf6 {[%clk 0:01:06]}  Qxf6 {[%clk 0:01:40]} 22. Qxf6 {[%clk 0:01:06]}  gxf6 {[%clk 0:01:41]} 23. Nd4 {[%clk 0:01:03]}  Rd6 {[%clk 0:01:34]} 24. Nf5 {[%clk 0:00:56]}  Rxd1+ {[%clk 0:01:28]} 25. Rxd1 {[%clk 0:00:57]}  Kh7 {[%clk 0:01:28]} 26. h4 {[%clk 0:00:51]}  Bc5 {[%clk 0:01:23]} 27. Bf3 {[%clk 0:00:38]}  Kg6 {[%clk 0:01:23]} 28. Nd6 {[%clk 0:00:34]}  Bxd6 {[%clk 0:01:18]} 29. Rxd6 {[%clk 0:00:35]}  Re7 {[%clk 0:01:06]} 30. Bxc6 {[%clk 0:00:24]}  Bxc6 {[%clk 0:01:04]} 31. Rxc6 {[%clk 0:00:24]}  Re2 {[%clk 0:01:04]} 32. a3 {[%clk 0:00:16]}  Ra2 {[%clk 0:01:02]} 33. b4 {[%clk 0:00:16]}  Rxa3 {[%clk 0:00:59]} 34. b5 {[%clk 0:00:16]}  Ra4 {[%clk 0:00:57]} 35. Kg2 {[%clk 0:00:15]}  Kf5 {[%clk 0:00:56]} 36. Rc7 {[%clk 0:00:15]}  Ke6 {[%clk 0:00:55]} 37. Kf3 {[%clk 0:00:15]}  Ra2 {[%clk 0:00:52]} 38. Kg4 {[%clk 0:00:11]}  f5+ {[%clk 0:00:35]} 39. Kh5 {[%clk 0:00:10]}  Rxf2 {[%clk 0:00:35]} 40. Rxa7 {[%clk 0:00:09]}  Rf3 {[%clk 0:00:35]} 41. Ra6 {[%clk 0:00:08]}  Rxg3 {[%clk 0:00:35]} 42. Rxb6+ {[%clk 0:00:08]}  Ke5 {[%clk 0:00:36]} 43. c5 {[%clk 0:00:05]}  f4 {[%clk 0:00:36]} 44. Rb7 {[%clk 0:00:06]}  Ke6 {[%clk 0:00:35]} 45. b6 {[%clk 0:00:05]}  f3 {[%clk 0:00:35]} 46. Ra7 {[%clk 0:00:04]}  f2 {[%clk 0:00:34]} 47. Ra1 {[%clk 0:00:03]}  Rg1 {[%clk 0:00:34]} 48. b7 {[%clk 0:00:03]}  Rxa1 {[%clk 0:00:32]} 49. b8=Q {[%clk 0:00:03]}  f1=Q {[%clk 0:00:32]} 50. Qd6+ {[%clk 0:00:04]}  Kf5 {[%clk 0:00:31]} 51. Qd5+ {[%clk 0:00:04]}  Kf6 {[%clk 0:00:31]} 52. Qd6+ {[%clk 0:00:03]}  Kg7 {[%clk 0:00:29]} 53. Qg3+ {[%clk 0:00:03]}  Kh7 {[%clk 0:00:28]} 54. Qe5 {[%clk 0:00:02]}  Qf3# {[%clk 0:00:25]} 0-1


[Site "https://www.chess.com"]

[Event "Titled Tuesday Blitz June 28 Early 2022"]
[White "Sevian, Samuel"]
[Black "Csonka, Balazs"]
[WhiteFideId "2040506"]
[BlackFideId "742910"]
[WhiteElo "3053"]
[BlackElo "2755"]
[Result "0-1"]
[Round "03"]
[TimeControl "180+1"]
[Date "2022.06.28"]
[WhiteClock "0:01:12"]
[BlackClock "0:00:05"]

1. d4 {[%clk 0:03:00]}  e6 {[%clk 0:03:00]} 2. e4 {[%clk 0:02:58]}  d5 {[%clk 0:03:00]} 3. Nc3 {[%clk 0:02:59]}  Nf6 {[%clk 0:02:56]} 4. e5 {[%clk 0:02:59]}  Nfd7 {[%clk 0:02:56]} 5. Nce2 {[%clk 0:02:58]}  c5 {[%clk 0:02:54]} 6. f4 {[%clk 0:02:59]}  Nc6 {[%clk 0:02:53]} 7. Nf3 {[%clk 0:03:00]}  b5 {[%clk 0:02:48]} 8. Ng3 {[%clk 0:02:58]}  Qb6 {[%clk 0:02:45]} 9. Bd3 {[%clk 0:02:56]}  cxd4 {[%clk 0:02:19]} 10. O-O {[%clk 0:02:46]}  g6 {[%clk 0:02:15]} 11. Bd2 {[%clk 0:02:43]}  Bg7 {[%clk 0:02:01]} 12. a3 {[%clk 0:02:41]}  Nc5 {[%clk 0:01:48]} 13. Kh1 {[%clk 0:02:38]}  a5 {[%clk 0:01:41]} 14. b4 {[%clk 0:02:36]}  axb4 {[%clk 0:01:32]} 15. axb4 {[%clk 0:02:37]}  Rxa1 {[%clk 0:01:31]} 16. Qxa1 {[%clk 0:02:38]}  Nxd3 {[%clk 0:01:30]} 17. cxd3 {[%clk 0:02:39]}  O-O {[%clk 0:01:25]} 18. Ne2 {[%clk 0:02:39]}  f6 {[%clk 0:01:20]} 19. exf6 {[%clk 0:02:37]}  Bxf6 {[%clk 0:01:18]} 20. Rc1 {[%clk 0:02:38]}  Bb7 {[%clk 0:00:58]} 21. Be1 {[%clk 0:02:28]}  Ra8 {[%clk 0:00:55]} 22. Qb2 {[%clk 0:02:27]}  Ra4 {[%clk 0:00:56]} 23. h4 {[%clk 0:02:09]}  Qa7 {[%clk 0:00:52]} 24. Rc2 {[%clk 0:02:04]}  Ra1 {[%clk 0:00:48]} 25. Kh2 {[%clk 0:02:05]}  Qa3 {[%clk 0:00:45]} 26. Qxa3 {[%clk 0:01:54]}  Rxa3 {[%clk 0:00:46]} 27. Rc5 {[%clk 0:01:55]}  Rxd3 {[%clk 0:00:30]} 28. Rxb5 {[%clk 0:01:54]}  Ba8 {[%clk 0:00:19]} 29. Rb6 {[%clk 0:01:49]}  Bd8 {[%clk 0:00:19]} 30. Ra6 {[%clk 0:01:48]}  Bb7 {[%clk 0:00:19]} 31. Ra2 {[%clk 0:01:45]}  Re3 {[%clk 0:00:10]} 32. b5 {[%clk 0:01:45]}  Ne7 {[%clk 0:00:03]} 33. Bf2 {[%clk 0:01:43]}  Re4 {[%clk 0:00:03]} 34. Nfxd4 {[%clk 0:01:39]}  Nf5 {[%clk 0:00:03]} 35. Nxf5 {[%clk 0:01:34]}  exf5 {[%clk 0:00:04]} 36. Bd4 {[%clk 0:01:24]}  Bxh4 {[%clk 0:00:03]} 37. Ra7 {[%clk 0:01:23]}  Rxe2 {[%clk 0:00:03]} 38. Rxb7 {[%clk 0:01:23]}  Rd2 {[%clk 0:00:02]} 39. Be5 {[%clk 0:01:23]}  Rd3 {[%clk 0:00:01]} 40. b6 {[%clk 0:01:23]}  Bg3+ {[%clk 0:00:01]} 41. Kh3 {[%clk 0:01:20]}  Bxf4+ {[%clk 0:00:02]} 42. g3 {[%clk 0:01:20]}  Bxe5 {[%clk 0:00:02]} 43. Re7 {[%clk 0:01:20]}  Rxg3+ {[%clk 0:00:02]} 44. Kh4 {[%clk 0:01:21]}  Rb3 {[%clk 0:00:03]} 45. Re6 {[%clk 0:01:19]}  Kf7 {[%clk 0:00:02]} 46. Rc6 {[%clk 0:01:18]}  Kg7 {[%clk 0:00:02]} 47. Re6 {[%clk 0:01:16]}  Kh6 {[%clk 0:00:02]} 48. b7 {[%clk 0:01:14]}  Rb4+ {[%clk 0:00:03]} 49. Kh3 {[%clk 0:01:15]}  Bg7 {[%clk 0:00:03]} 50. Re7 {[%clk 0:01:14]}  d4 {[%clk 0:00:03]} 51. Kg2 {[%clk 0:01:12]}  d3 {[%clk 0:00:03]} 52. Kf3 {[%clk 0:01:13]}  d2 {[%clk 0:00:04]} 53. Ke2 {[%clk 0:01:14]}  Rb2 {[%clk 0:00:04]} 54. Kd1 {[%clk 0:01:14]}  Bf6 {[%clk 0:00:04]} 55. Rf7 {[%clk 0:01:13]}  Bg5 {[%clk 0:00:03]} 56. Rd7 {[%clk 0:01:12]}  Rb1+ {[%clk 0:00:04]} 57. Ke2 {[%clk 0:01:12]}  d1=Q+ {[%clk 0:00:04]} 58. Rxd1 {[%clk 0:01:12]}  Rxb7 {[%clk 0:00:05]} 0-1


[Site "https://www.chess.com"]

[Event "Titled Tuesday Blitz June 28 Early 2022"]
[White "Shtyka, Sergey"]
[Black "Liyanage, Ranindu Dilshan"]
[WhiteFideId "4138465"]
[BlackFideId "9915834"]
[WhiteElo "2014"]
[BlackElo "1858"]
[Result "0-1"]
[Round "03"]
[TimeControl "180+1"]
[Date "2022.06.28"]
[WhiteClock "0:00:03"]
[BlackClock "0:00:10"]

1. e4 {[%clk 0:03:00]}  e5 {[%clk 0:02:59]} 2. Nf3 {[%clk 0:03:00]}  Nc6 {[%clk 0:02:59]} 3. Nc3 {[%clk 0:03:01]}  Nf6 {[%clk 0:02:57]} 4. Bb5 {[%clk 0:02:59]}  Bb4 {[%clk 0:02:34]} 5. O-O {[%clk 0:02:58]}  O-O {[%clk 0:02:30]} 6. d3 {[%clk 0:02:56]}  d6 {[%clk 0:02:23]} 7. Bxc6 {[%clk 0:02:56]}  bxc6 {[%clk 0:02:22]} 8. Bg5 {[%clk 0:02:55]}  h6 {[%clk 0:02:22]} 9. Bh4 {[%clk 0:02:55]}  Rb8 {[%clk 0:02:18]} 10. Ne2 {[%clk 0:02:53]}  Bg4 {[%clk 0:02:17]} 11. Nd2 {[%clk 0:02:25]}  g5 {[%clk 0:02:13]} 12. Bg3 {[%clk 0:02:24]}  Nh5 {[%clk 0:02:12]} 13. f3 {[%clk 0:02:16]}  Bc5+ {[%clk 0:02:08]} 14. Bf2 {[%clk 0:02:14]}  Bxf2+ {[%clk 0:02:06]} 15. Rxf2 {[%clk 0:02:13]}  Be6 {[%clk 0:02:06]} 16. b3 {[%clk 0:02:13]}  Kh7 {[%clk 0:01:55]} 17. Nf1 {[%clk 0:02:07]}  Nf4 {[%clk 0:01:54]} 18. Ne3 {[%clk 0:02:04]}  Qf6 {[%clk 0:01:52]} 19. Qf1 {[%clk 0:01:50]}  Qg6 {[%clk 0:01:35]} 20. Kh1 {[%clk 0:01:46]}  f5 {[%clk 0:01:33]} 21. exf5 {[%clk 0:01:44]}  Bxf5 {[%clk 0:01:34]} 22. Nxf5 {[%clk 0:01:42]}  Qxf5 {[%clk 0:01:34]} 23. Ng3 {[%clk 0:01:24]}  Qg6 {[%clk 0:01:31]} 24. Re1 {[%clk 0:01:22]}  h5 {[%clk 0:01:29]} 25. Ne4 {[%clk 0:01:20]}  g4 {[%clk 0:01:28]} 26. fxg4 {[%clk 0:01:17]}  hxg4 {[%clk 0:01:26]} 27. g3 {[%clk 0:01:15]}  Ne6 {[%clk 0:01:25]} 28. Nf6+ {[%clk 0:00:49]}  Kg7 {[%clk 0:01:20]} 29. Ne4 {[%clk 0:00:42]}  Nd4 {[%clk 0:01:14]} 30. Re3 {[%clk 0:00:22]}  Rxf2 {[%clk 0:01:09]} 31. Qxf2 {[%clk 0:00:21]}  Rf8 {[%clk 0:01:10]} 32. Qg2 {[%clk 0:00:20]}  Qf5 {[%clk 0:00:56]} 33. Re1 {[%clk 0:00:19]}  Nf3 {[%clk 0:00:46]} 34. Rf1 {[%clk 0:00:19]}  Qc8 {[%clk 0:00:17]} 35. c4 {[%clk 0:00:14]}  d5 {[%clk 0:00:16]} 36. Nc5 {[%clk 0:00:14]}  Nd4 {[%clk 0:00:12]} 37. Rf2 {[%clk 0:00:11]}  Qe8 {[%clk 0:00:10]} 38. Kg1 {[%clk 0:00:11]}  Nf3+ {[%clk 0:00:09]} 39. Kf1 {[%clk 0:00:09]}  e4 {[%clk 0:00:09]} 40. h3 {[%clk 0:00:08]}  e3 {[%clk 0:00:10]} 41. Rxf3 {[%clk 0:00:03]}  gxf3 {[%clk 0:00:09]} 42. Qb2+ {[%clk 0:00:02]}  Kh7 {[%clk 0:00:10]} 43. Qd4 {[%clk 0:00:02]}  e2+ {[%clk 0:00:10]} 44. Ke1 {[%clk 0:00:02]}  f2+ {[%clk 0:00:10]} 45. Qxf2 {[%clk 0:00:03]}  Rxf2 {[%clk 0:00:10]} 0-1


[Site "https://www.chess.com"]

[Event "Titled Tuesday Blitz June 28 Early 2022"]
[White "Silva, Pedro Gil Ferreira Da"]
[Black "Bellahcene, Bilel"]
[WhiteFideId "1946102"]
[BlackFideId "696358"]
[WhiteElo "1863"]
[BlackElo "2543"]
[Result "1-0"]
[Round "03"]
[TimeControl "180+1"]
[Date "2022.06.28"]
[WhiteClock "0:00:33"]
[BlackClock "0:00:01"]

1. Nf3 {[%clk 0:03:00]}  d5 {[%clk 0:02:55]} 2. c4 {[%clk 0:02:57]}  d4 {[%clk 0:02:54]} 3. g3 {[%clk 0:02:57]}  Nc6 {[%clk 0:02:50]} 4. Bg2 {[%clk 0:02:58]}  e5 {[%clk 0:02:51]} 5. d3 {[%clk 0:02:58]}  Be6 {[%clk 0:02:46]} 6. O-O {[%clk 0:02:58]}  Qd7 {[%clk 0:02:45]} 7. a3 {[%clk 0:02:52]}  a5 {[%clk 0:02:43]} 8. Ng5 {[%clk 0:02:39]}  Bf5 {[%clk 0:02:33]} 9. f4 {[%clk 0:02:38]}  f6 {[%clk 0:02:20]} 10. Ne4 {[%clk 0:02:35]}  h5 {[%clk 0:02:06]} 11. fxe5 {[%clk 0:02:30]}  Nxe5 {[%clk 0:02:02]} 12. Bf4 {[%clk 0:02:28]}  h4 {[%clk 0:01:52]} 13. Nbd2 {[%clk 0:02:23]}  Ng6 {[%clk 0:01:39]} 14. Qe1 {[%clk 0:02:10]}  Nxf4 {[%clk 0:01:35]} 15. Rxf4 {[%clk 0:02:08]}  g5 {[%clk 0:01:34]} 16. Rf1 {[%clk 0:01:57]}  O-O-O {[%clk 0:01:33]} 17. Qf2 {[%clk 0:01:57]}  Bh3 {[%clk 0:01:06]} 18. Bxh3 {[%clk 0:01:47]}  Qxh3 {[%clk 0:01:07]} 19. Qf5+ {[%clk 0:01:47]}  Qxf5 {[%clk 0:01:03]} 20. Rxf5 {[%clk 0:01:48]}  Nh6 {[%clk 0:00:48]} 21. Rxa5 {[%clk 0:01:37]}  Ng4 {[%clk 0:00:30]} 22. Rf1 {[%clk 0:01:30]}  Be7 {[%clk 0:00:29]} 23. Ra8+ {[%clk 0:00:52]}  Kd7 {[%clk 0:00:29]} 24. Rxd8+ {[%clk 0:00:51]}  Kxd8 {[%clk 0:00:29]} 25. Rf5 {[%clk 0:00:47]}  c6 {[%clk 0:00:26]} 26. Nf3 {[%clk 0:00:38]}  Ne3 {[%clk 0:00:11]} 27. Ra5 {[%clk 0:00:37]}  Kc7 {[%clk 0:00:10]} 28. Nxd4 {[%clk 0:00:37]}  Kb6 {[%clk 0:00:09]} 29. b4 {[%clk 0:00:36]}  Rd8 {[%clk 0:00:05]} 30. Ne6 {[%clk 0:00:36]}  Re8 {[%clk 0:00:03]} 31. c5+ {[%clk 0:00:36]}  Bxc5 {[%clk 0:00:02]} 32. N6xc5 {[%clk 0:00:37]}  f5 {[%clk 0:00:02]} 33. Nd6 {[%clk 0:00:37]}  Re6 {[%clk 0:00:01]} 34. Nxe6 {[%clk 0:00:33]}  hxg3 {[%clk 0:00:01]} 35. Nc4+ {[%clk 0:00:33]} 1-0


[Site "https://www.chess.com"]

[Event "Titled Tuesday Blitz June 28 Early 2022"]
[White "Sukandar, Irine Kharisma"]
[Black "Dronavalli, Harika"]
[WhiteFideId "7101937"]
[BlackFideId "5015197"]
[WhiteElo "2293"]
[BlackElo "2382"]
[Result "1-0"]
[Round "03"]
[TimeControl "180+1"]
[Date "2022.06.28"]
[WhiteClock "0:00:03"]
[BlackClock "0:00:12"]

1. d4 {[%clk 0:03:00]}  Nf6 {[%clk 0:02:59]} 2. Nc3 {[%clk 0:03:01]}  d6 {[%clk 0:02:57]} 3. e4 {[%clk 0:02:59]}  g6 {[%clk 0:02:58]} 4. h3 {[%clk 0:02:58]}  a6 {[%clk 0:02:57]} 5. Nf3 {[%clk 0:02:58]}  Bg7 {[%clk 0:02:56]} 6. Bd3 {[%clk 0:02:56]}  b5 {[%clk 0:02:54]} 7. a4 {[%clk 0:02:54]}  b4 {[%clk 0:02:52]} 8. Ne2 {[%clk 0:02:55]}  Bb7 {[%clk 0:02:53]} 9. Ng3 {[%clk 0:02:55]}  O-O {[%clk 0:02:47]} 10. Be3 {[%clk 0:02:47]}  Nbd7 {[%clk 0:02:45]} 11. Qd2 {[%clk 0:02:46]}  c5 {[%clk 0:02:45]} 12. c3 {[%clk 0:02:45]}  Rc8 {[%clk 0:02:38]} 13. O-O {[%clk 0:02:43]}  e5 {[%clk 0:02:29]} 14. d5 {[%clk 0:02:32]}  c4 {[%clk 0:02:25]} 15. Be2 {[%clk 0:02:30]}  b3 {[%clk 0:02:25]} 16. a5 {[%clk 0:02:14]}  Nc5 {[%clk 0:02:24]} 17. Bxc4 {[%clk 0:02:00]}  Ncxe4 {[%clk 0:02:23]} 18. Nxe4 {[%clk 0:01:55]}  Rxc4 {[%clk 0:02:02]} 19. Nxf6+ {[%clk 0:01:53]}  Bxf6 {[%clk 0:02:02]} 20. Bb6 {[%clk 0:01:53]}  Qc8 {[%clk 0:01:55]} 21. Ra3 {[%clk 0:01:45]}  e4 {[%clk 0:01:48]} 22. Nh2 {[%clk 0:01:29]}  Qf5 {[%clk 0:01:45]} 23. Ng4 {[%clk 0:01:24]}  Bg5 {[%clk 0:01:38]} 24. Be3 {[%clk 0:01:16]}  f6 {[%clk 0:01:20]} 25. Bxg5 {[%clk 0:00:46]}  Qxg5 {[%clk 0:01:20]} 26. Qxg5 {[%clk 0:00:42]}  fxg5 {[%clk 0:01:20]} 27. Rxb3 {[%clk 0:00:40]}  Bxd5 {[%clk 0:01:19]} 28. Rb6 {[%clk 0:00:39]}  Rc6 {[%clk 0:01:09]} 29. Rd1 {[%clk 0:00:38]}  Rc5 {[%clk 0:01:00]} 30. Rxd6 {[%clk 0:00:37]}  Bb3 {[%clk 0:01:01]} 31. Re1 {[%clk 0:00:29]}  Bc2 {[%clk 0:00:51]} 32. Nf6+ {[%clk 0:00:23]}  Kg7 {[%clk 0:00:46]} 33. Nd7 {[%clk 0:00:20]}  Rd8 {[%clk 0:00:46]} 34. Nxc5 {[%clk 0:00:20]}  Rxd6 {[%clk 0:00:46]} 35. Nxe4 {[%clk 0:00:17]}  Re6 {[%clk 0:00:47]} 36. f3 {[%clk 0:00:17]}  Re5 {[%clk 0:00:47]} 37. b4 {[%clk 0:00:16]}  h5 {[%clk 0:00:36]} 38. Kf2 {[%clk 0:00:16]}  Rd5 {[%clk 0:00:35]} 39. Re2 {[%clk 0:00:13]}  Bd3 {[%clk 0:00:34]} 40. Re3 {[%clk 0:00:07]}  Bb5 {[%clk 0:00:28]} 41. Nc5 {[%clk 0:00:07]}  Rd2+ {[%clk 0:00:28]} 42. Kg1 {[%clk 0:00:03]}  Rc2 {[%clk 0:00:25]} 43. Ne4 {[%clk 0:00:02]}  Kh6 {[%clk 0:00:22]} 44. Nd6 {[%clk 0:00:02]}  Rc1+ {[%clk 0:00:18]} 45. Kf2 {[%clk 0:00:02]}  Rf1+ {[%clk 0:00:16]} 46. Kg3 {[%clk 0:00:03]}  h4+ {[%clk 0:00:15]} 47. Kh2 {[%clk 0:00:03]}  Bc6 {[%clk 0:00:15]} 48. Nf7+ {[%clk 0:00:03]}  Kh5 {[%clk 0:00:15]} 49. Re5 {[%clk 0:00:03]}  Bxf3 {[%clk 0:00:12]} 50. Rxg5# {[%clk 0:00:03]} 1-0


[Site "https://www.chess.com"]

[Event "Titled Tuesday Blitz June 28 Early 2022"]
[White "Suleymanli, Suleyman"]
[Black "Marin Ramirez, Gerardo"]
[WhiteFideId "13416375"]
[BlackFideId "3901068"]
[WhiteElo "1598"]
[BlackElo "1920"]
[Result "1-0"]
[Round "03"]
[TimeControl "180+1"]
[Date "2022.06.28"]
[WhiteClock "0:01:52"]
[BlackClock "0:00:10"]

1. d4 {[%clk 0:03:00]}  d5 {[%clk 0:02:56]} 2. c4 {[%clk 0:03:00]}  c6 {[%clk 0:02:57]} 3. cxd5 {[%clk 0:02:59]}  cxd5 {[%clk 0:02:55]} 4. Nc3 {[%clk 0:02:59]}  Nf6 {[%clk 0:02:54]} 5. Nf3 {[%clk 0:02:57]}  a6 {[%clk 0:02:54]} 6. Bf4 {[%clk 0:02:57]}  Bf5 {[%clk 0:02:53]} 7. e3 {[%clk 0:02:58]}  Nc6 {[%clk 0:02:52]} 8. Qb3 {[%clk 0:02:57]}  b5 {[%clk 0:02:38]} 9. Rc1 {[%clk 0:02:56]}  Bd7 {[%clk 0:02:36]} 10. Nxd5 {[%clk 0:02:54]}  Nxd5 {[%clk 0:02:21]} 11. Qxd5 {[%clk 0:02:55]}  Qa5+ {[%clk 0:02:19]} 12. Nd2 {[%clk 0:02:52]}  e6 {[%clk 0:02:10]} 13. Qe4 {[%clk 0:02:50]}  Bb4 {[%clk 0:02:05]} 14. Rxc6 {[%clk 0:02:42]}  Bxd2+ {[%clk 0:02:02]} 15. Ke2 {[%clk 0:02:42]}  O-O {[%clk 0:01:53]} 16. Rc2 {[%clk 0:02:40]}  Bb4 {[%clk 0:01:49]} 17. a3 {[%clk 0:02:39]}  Be7 {[%clk 0:01:49]} 18. g3 {[%clk 0:02:39]}  Rac8 {[%clk 0:01:44]} 19. Bg2 {[%clk 0:02:36]}  b4 {[%clk 0:01:34]} 20. axb4 {[%clk 0:02:29]}  Bb5+ {[%clk 0:01:30]} 21. Kf3 {[%clk 0:02:28]}  Qb6 {[%clk 0:01:12]} 22. Rhc1 {[%clk 0:02:25]}  Rxc2 {[%clk 0:01:10]} 23. Qxc2 {[%clk 0:02:26]}  Bxb4 {[%clk 0:00:52]} 24. g4 {[%clk 0:02:21]}  f5 {[%clk 0:00:43]} 25. g5 {[%clk 0:02:16]}  Bd6 {[%clk 0:00:24]} 26. Bxd6 {[%clk 0:02:00]}  Qxd6 {[%clk 0:00:23]} 27. Qc7 {[%clk 0:02:01]}  Qd5+ {[%clk 0:00:22]} 28. Kg3 {[%clk 0:01:59]}  Qb3 {[%clk 0:00:22]} 29. Qe5 {[%clk 0:01:55]}  Bc4 {[%clk 0:00:11]} 30. Rxc4 {[%clk 0:01:52]}  Qxc4 {[%clk 0:00:10]} 31. h4 {[%clk 0:01:52]} 1-0


[Site "https://www.chess.com"]

[Event "Titled Tuesday Blitz June 28 Early 2022"]
[White "Tan, Jun Ying"]
[Black "Polster, Christian"]
[WhiteFideId "5710413"]
[BlackFideId "12965081"]
[WhiteElo "1827"]
[BlackElo "2297"]
[Result "1-0"]
[Round "03"]
[TimeControl "180+1"]
[Date "2022.06.28"]
[WhiteClock "0:00:39"]
[BlackClock "0:00:08"]

1. e4 {[%clk 0:03:00]}  c5 {[%clk 0:02:59]} 2. Nc3 {[%clk 0:03:00]}  a6 {[%clk 0:02:58]} 3. f4 {[%clk 0:02:56]}  e6 {[%clk 0:02:55]} 4. Nf3 {[%clk 0:02:56]}  d5 {[%clk 0:02:55]} 5. d3 {[%clk 0:02:53]}  Nc6 {[%clk 0:02:53]} 6. g3 {[%clk 0:02:52]}  Nf6 {[%clk 0:02:53]} 7. Bg2 {[%clk 0:02:53]}  dxe4 {[%clk 0:02:53]} 8. dxe4 {[%clk 0:02:52]}  Qxd1+ {[%clk 0:02:53]} 9. Kxd1 {[%clk 0:02:53]}  Be7 {[%clk 0:02:50]} 10. e5 {[%clk 0:02:52]}  Ng4 {[%clk 0:02:49]} 11. Ne4 {[%clk 0:02:51]}  h5 {[%clk 0:02:44]} 12. h3 {[%clk 0:02:51]}  Nh6 {[%clk 0:02:43]} 13. Ke2 {[%clk 0:02:50]}  Nf5 {[%clk 0:02:38]} 14. c3 {[%clk 0:02:45]}  Bd7 {[%clk 0:02:11]} 15. Be3 {[%clk 0:02:40]}  O-O-O {[%clk 0:01:49]} 16. g4 {[%clk 0:02:09]}  hxg4 {[%clk 0:01:46]} 17. hxg4 {[%clk 0:02:10]}  Nxe3 {[%clk 0:01:44]} 18. Kxe3 {[%clk 0:02:11]}  Kc7 {[%clk 0:01:37]} 19. Nfg5 {[%clk 0:02:02]}  Rxh1 {[%clk 0:01:29]} 20. Rxh1 {[%clk 0:02:03]}  Be8 {[%clk 0:01:29]} 21. Rh7 {[%clk 0:01:56]}  Bf8 {[%clk 0:01:23]} 22. Nd6 {[%clk 0:01:50]}  Bxd6 {[%clk 0:01:12]} 23. exd6+ {[%clk 0:01:51]}  Kxd6 {[%clk 0:01:02]} 24. Rxg7 {[%clk 0:01:49]}  Rd7 {[%clk 0:01:00]} 25. Ne4+ {[%clk 0:01:45]}  Ke7 {[%clk 0:00:56]} 26. Nxc5 {[%clk 0:01:43]}  Rc7 {[%clk 0:00:56]} 27. Ne4 {[%clk 0:01:40]}  Na5 {[%clk 0:00:54]} 28. b3 {[%clk 0:01:35]}  b5 {[%clk 0:00:49]} 29. Rg5 {[%clk 0:01:27]}  Bc6 {[%clk 0:00:46]} 30. Kd4 {[%clk 0:00:50]}  Nb7 {[%clk 0:00:44]} 31. c4 {[%clk 0:00:45]}  bxc4 {[%clk 0:00:39]} 32. bxc4 {[%clk 0:00:45]}  Nd6 {[%clk 0:00:18]} 33. Nxd6 {[%clk 0:00:40]}  Bxg2 {[%clk 0:00:18]} 34. c5 {[%clk 0:00:40]}  Bd5 {[%clk 0:00:12]} 35. a3 {[%clk 0:00:38]}  f6 {[%clk 0:00:04]} 36. Rg7+ {[%clk 0:00:35]}  Kd8 {[%clk 0:00:04]} 37. Rxc7 {[%clk 0:00:34]}  Kxc7 {[%clk 0:00:05]} 38. Ne8+ {[%clk 0:00:35]}  Kc6 {[%clk 0:00:05]} 39. Nxf6 {[%clk 0:00:36]}  Ba2 {[%clk 0:00:05]} 40. g5 {[%clk 0:00:36]}  Bb1 {[%clk 0:00:05]} 41. Ne4 {[%clk 0:00:36]}  Bxe4 {[%clk 0:00:03]} 42. Kxe4 {[%clk 0:00:36]}  Kxc5 {[%clk 0:00:03]} 43. g6 {[%clk 0:00:34]}  Kd6 {[%clk 0:00:04]} 44. g7 {[%clk 0:00:35]}  Ke7 {[%clk 0:00:05]} 45. g8=Q {[%clk 0:00:35]}  Kd6 {[%clk 0:00:06]} 46. Qg5 {[%clk 0:00:35]}  a5 {[%clk 0:00:03]} 47. Qe5+ {[%clk 0:00:36]}  Kc6 {[%clk 0:00:03]} 48. Qxa5 {[%clk 0:00:36]}  Kd7 {[%clk 0:00:04]} 49. Qe5 {[%clk 0:00:36]}  Ke7 {[%clk 0:00:04]} 50. a4 {[%clk 0:00:37]}  Kd7 {[%clk 0:00:05]} 51. a5 {[%clk 0:00:38]}  Ke7 {[%clk 0:00:06]} 52. a6 {[%clk 0:00:38]}  Kd7 {[%clk 0:00:07]} 53. a7 {[%clk 0:00:39]}  Ke7 {[%clk 0:00:08]} 54. a8=Q {[%clk 0:00:39]}  Kd7 {[%clk 0:00:08]} 55. Qb7+ {[%clk 0:00:39]}  Kd8 {[%clk 0:00:08]} 56. Qh8# {[%clk 0:00:39]} 1-0


[Site "https://www.chess.com"]